{"text_format":"3","workbook":"xlsx","n_sheets":2,"sheets":["ZAČETEK","OSEBNI MESEČNI PRORAČUN"],"read":"whole","date_system":"1900"}

{"sheet":"ZAČETEK","index":0,"n_rows":7,"n_cols":2,"rows_kept":7}
[null,"O TEJ PREDLOGI"]
[null,"S tem delovnim listom za osebni mesečni proračun lahko spremljate svoje predvidene in dejanske mesečne prihodke ter predvidene in dejanske stroške."]
[null,"Vnesite dejanske stroške po različnih kategorijah v ustrezne tabele."]
[null,"Predvideno stanje, dejansko stanje in razlika so samodejno izračunani."]
[null,"Opomba: "]
[null,"Dodatna navodila so na voljo v stolpcu A na delovnem listu OSEBNI MESEČNI PRORAČUN. To besedilo je bilo skrito namenoma. Če želite besedilo premakniti, izberite stolpec A, nato izberite še IZBRIŠI. Če želite besedilo razkriti, izberite stolpec A, nato zamenjajte barvo pisave."]
[null,"Če želite izvedeti več o tabelah na delovnem list, znotraj tabele pritisnite SHIFT in nato F10, izberite možnost TABELA in nato izberite še NADOMESTNO BESEDILO."]

{"sheet":"OSEBNI MESEČNI PRORAČUN","index":1,"n_rows":64,"n_cols":10,"rows_kept":64,"merged":[[3,1,5,1],[3,2,3,3],[3,6,4,8],[3,9,4,9],[4,2,4,3],[5,2,5,3],[5,6,6,8],[5,9,6,9],[7,1,9,1],[7,2,7,3],[7,6,8,8],[7,9,8,9],[8,2,8,3],[9,2,9,3],[58,6,59,8],[58,9,59,9],[60,6,61,8],[60,9,61,9],[62,6,63,8],[62,9,63,9]]}
["Na tem delovnem listu ustvarite osebni mesečni proračun. Koristna navodila za uporabo tega delovnega lista najdete v celicah v tem stolpcu. Puščica dol za začetek dela."]
["Naslov tega delovnega lista je v celici na desni strani. Naslednji korak je v celici A4.","OSEBNI MESEČNI PRORAČUN"]
[]
["Oznaka za predvidene mesečne dohodke je v celici na desni. Dohodek 1 vnesite v celico E4, dodatni dohodek pa vnesite v celico E5, da izračunate skupni mesečni dohodek v celici E6. Naslednji korak je v celici A6.","PREDVIDENI MESEČNI DOHODEK","Dohodek 1",null,{"v":4300,"d":"4,300.00 €"},null,"PREDVIDENA BILANCA \n(predvideni dohodek minus stroški)",null,null,{"$f":"E6-J59","v":{"v":3405,"d":"3,405.00 €"}}]
[null,null,"Dodatni dohodek",null,{"v":300,"d":"300.00 €"}]
["Predvidena bilanca je samodejno izračunana v celici J4, dejanska bilanca v celici J6 in razlika v celici J8. Naslednji korak je v celici A8.",null,"Mesečni dohodek skupaj",null,{"$f":"SUM(E4:E5)","v":{"v":4600,"d":"4,600.00 €"}},null,"DEJANSKA BILANCA \n(dejanski dohodek minus stroški)",null,null,{"$f":"E10-J61","v":{"v":3064,"d":"3,064.00 €"}}]
[]
["Oznaka za dejanske mesečne dohodke je v celici na desni. Dohodek 1 vnesite v celico E8, dodatni dohodek pa vnesite v celico E9, da izračunate skupni mesečni dohodek v celici E10. Naslednji korak je v celici A12.","DEJANSKI MESEČNI DOHODEK","Dohodek 1",null,{"v":4000,"d":"4,000.00 €"},null,"RAZLIKA \n(dejansko minus predvideno)",null,null,{"$f":"J6-J4","v":{"v":-341,"d":"-341.00 €"}}]
[null,null,"Dodatni dohodek",null,{"v":300,"d":"300.00 €"}]
[null,null,"Mesečni dohodek skupaj",null,{"$f":"SUM(E8:E9)","v":{"v":4300,"d":"4,300.00 €"}}]
[]
["Podrobnosti vnesite v tabelo »Nastanitev«, ki se začne v celici na desni, ter v tabelo »Razvedrilo«, ki se začne v celici G12. Naslednji korak je v celici A25.","NASTANITEV","Predvideni stroški","Dejanski stroški","Razlika",null,"RAZVEDRILO","Predvideni stroški","Dejanski stroški","Razlika"]
[null,"Hipoteka ali najemnina",{"v":1000,"d":"1,000.00 €"},{"v":1000,"d":"1,000.00 €"},{"$f":"Bivanje[[#This Row],[Predvideni stroški]]-Bivanje[[#This Row],[Dejanski stroški]]","v":{"v":0,"d":"0.00 €"}},null,"Večer zunaj",null,null,{"$f":"Razvedrilo[[#This Row],[Predvideni stroški]]-Razvedrilo[[#This Row],[Dejanski stroški]]","v":{"v":0,"d":"0.00 €"}}]
[null,"Telefon",{"v":54,"d":"54.00 €"},{"v":100,"d":"100.00 €"},{"$f":"Bivanje[[#This Row],[Predvideni stroški]]-Bivanje[[#This Row],[Dejanski stroški]]","v":{"v":-46,"d":"-46.00 €"}},null,"Glasbene platforme",null,null,{"$f":"Razvedrilo[[#This Row],[Predvideni stroški]]-Razvedrilo[[#This Row],[Dejanski stroški]]","v":{"v":0,"d":"0.00 €"}}]
[null,"Elektrika",{"v":44,"d":"44.00 €"},{"v":56,"d":"56.00 €"},{"$f":"Bivanje[[#This Row],[Predvideni stroški]]-Bivanje[[#This Row],[Dejanski stroški]]","v":{"v":-12,"d":"-12.00 €"}},null,"Filmi",null,null,{"$f":"Razvedrilo[[#This Row],[Predvideni stroški]]-Razvedrilo[[#This Row],[Dejanski stroški]]","v":{"v":0,"d":"0.00 €"}}]
[null,"Plin",{"v":22,"d":"22.00 €"},{"v":28,"d":"28.00 €"},{"$f":"Bivanje[[#This Row],[Predvideni stroški]]-Bivanje[[#This Row],[Dejanski stroški]]","v":{"v":-6,"d":"-6.00 €"}},null,"Koncerti",null,null,{"$f":"Razvedrilo[[#This Row],[Predvideni stroški]]-Razvedrilo[[#This Row],[Dejanski stroški]]","v":{"v":0,"d":"0.00 €"}}]
[null,"Voda in kanalščina",{"v":8,"d":"8.00 €"},{"v":8,"d":"8.00 €"},{"$f":"Bivanje[[#This Row],[Predvideni stroški]]-Bivanje[[#This Row],[Dejanski stroški]]","v":{"v":0,"d":"0.00 €"}},null,"Športni dogodki",null,null,{"$f":"Razvedrilo[[#This Row],[Predvideni stroški]]-Razvedrilo[[#This Row],[Dejanski stroški]]","v":{"v":0,"d":"0.00 €"}}]
[null,"Kabelska",{"v":34,"d":"34.00 €"},{"v":34,"d":"34.00 €"},{"$f":"Bivanje[[#This Row],[Predvideni stroški]]-Bivanje[[#This Row],[Dejanski stroški]]","v":{"v":0,"d":"0.00 €"}},null,"Gledališče",null,null,{"$f":"Razvedrilo[[#This Row],[Predvideni stroški]]-Razvedrilo[[#This Row],[Dejanski stroški]]","v":{"v":0,"d":"0.00 €"}}]
[null,"Odvoz odpadkov",{"v":10,"d":"10.00 €"},{"v":10,"d":"10.00 €"},{"$f":"Bivanje[[#This Row],[Predvideni stroški]]-Bivanje[[#This Row],[Dejanski stroški]]","v":{"v":0,"d":"0.00 €"}},null,"Drugo",null,null,{"$f":"Razvedrilo[[#This Row],[Predvideni stroški]]-Razvedrilo[[#This Row],[Dejanski stroški]]","v":{"v":0,"d":"0.00 €"}}]
[null,"Vzdrževanje ali popravila",{"v":23,"d":"23.00 €"},{"v":0,"d":"0.00 €"},{"$f":"Bivanje[[#This Row],[Predvideni stroški]]-Bivanje[[#This Row],[Dejanski stroški]]","v":{"v":23,"d":"23.00 €"}},null,"Drugo",null,null,{"$f":"Razvedrilo[[#This Row],[Predvideni stroški]]-Razvedrilo[[#This Row],[Dejanski stroški]]","v":{"v":0,"d":"0.00 €"}}]
[null,"Zaloge",{"v":0,"d":"0.00 €"},{"v":0,"d":"0.00 €"},{"$f":"Bivanje[[#This Row],[Predvideni stroški]]-Bivanje[[#This Row],[Dejanski stroški]]","v":{"v":0,"d":"0.00 €"}},null,"Drugo",null,null,{"$f":"Razvedrilo[[#This Row],[Predvideni stroški]]-Razvedrilo[[#This Row],[Dejanski stroški]]","v":{"v":0,"d":"0.00 €"}}]
[null,"Drugo",{"v":0,"d":"0.00 €"},{"v":0,"d":"0.00 €"},{"$f":"Bivanje[[#This Row],[Predvideni stroški]]-Bivanje[[#This Row],[Dejanski stroški]]","v":{"v":0,"d":"0.00 €"}},null,"Delna vsota",null,null,{"$f":"SUBTOTAL(109,Razvedrilo[Razlika])","v":{"v":0,"d":"0.00 €"}}]
[null,"Delna vsota",null,null,{"$f":"SUBTOTAL(109,Bivanje[Razlika])","v":{"v":-41,"d":"-41.00 €"}}]
[{"$nulls":6},"POSOJILA","Predvideni stroški","Dejanski stroški","Razlika"]
["Podrobnosti vnesite v tabelo »Prevozi«, ki se začne v celici na desni, ter v tabelo »Posojila«, ki se začne v celici G24. Naslednji korak je v celici A35.","PREVOZ","Predvideni stroški","Dejanski stroški","Razlika",null,"Osebno",null,null,{"$f":"Posojila[[#This Row],[Predvideni stroški]]-Posojila[[#This Row],[Dejanski stroški]]","v":{"v":0,"d":"0.00 €"}}]
[null,"Plačilo vozila",null,null,{"$f":"Prevoz[[#This Row],[Predvideni stroški]]-Prevoz[[#This Row],[Dejanski stroški]]","v":{"v":0,"d":"0.00 €"}},null,"Študentsko",null,null,{"$f":"Posojila[[#This Row],[Predvideni stroški]]-Posojila[[#This Row],[Dejanski stroški]]","v":{"v":0,"d":"0.00 €"}}]
[null,"Avtobus/taksi",null,null,{"$f":"Prevoz[[#This Row],[Predvideni stroški]]-Prevoz[[#This Row],[Dejanski stroški]]","v":{"v":0,"d":"0.00 €"}},null,"Kreditna kartica",null,null,{"$f":"Posojila[[#This Row],[Predvideni stroški]]-Posojila[[#This Row],[Dejanski stroški]]","v":{"v":0,"d":"0.00 €"}}]
[null,"Zavarovanje",null,null,{"$f":"Prevoz[[#This Row],[Predvideni stroški]]-Prevoz[[#This Row],[Dejanski stroški]]","v":{"v":0,"d":"0.00 €"}},null,"Kreditna kartica",null,null,{"$f":"Posojila[[#This Row],[Predvideni stroški]]-Posojila[[#This Row],[Dejanski stroški]]","v":{"v":0,"d":"0.00 €"}}]
[null,"Registracija",null,null,{"$f":"Prevoz[[#This Row],[Predvideni stroški]]-Prevoz[[#This Row],[Dejanski stroški]]","v":{"v":0,"d":"0.00 €"}},null,"Kreditna kartica",null,null,{"$f":"Posojila[[#This Row],[Predvideni stroški]]-Posojila[[#This Row],[Dejanski stroški]]","v":{"v":0,"d":"0.00 €"}}]
[null,"Gorivo",null,null,{"$f":"Prevoz[[#This Row],[Predvideni stroški]]-Prevoz[[#This Row],[Dejanski stroški]]","v":{"v":0,"d":"0.00 €"}},null,"Drugo",null,null,{"$f":"Posojila[[#This Row],[Predvideni stroški]]-Posojila[[#This Row],[Dejanski stroški]]","v":{"v":0,"d":"0.00 €"}}]
[null,"Vzdrževanje",null,null,{"$f":"Prevoz[[#This Row],[Predvideni stroški]]-Prevoz[[#This Row],[Dejanski stroški]]","v":{"v":0,"d":"0.00 €"}},null,"Delna vsota",null,null,{"$f":"SUBTOTAL(109,Posojila[Razlika])","v":{"v":0,"d":"0.00 €"}}]
[null,"Drugo",null,null,{"$f":"Prevoz[[#This Row],[Predvideni stroški]]-Prevoz[[#This Row],[Dejanski stroški]]","v":{"v":0,"d":"0.00 €"}}]
[null,"Delna vsota",null,null,{"$f":"SUBTOTAL(109,Prevoz[Razlika])","v":{"v":0,"d":"0.00 €"}},null,"DAVKI","Predvideni stroški","Dejanski stroški","Razlika"]
[{"$nulls":6},"Zvezni",null,null,{"$f":"Davki[[#This Row],[Predvideni stroški]]-Davki[[#This Row],[Dejanski stroški]]","v":{"v":0,"d":"0.00 €"}}]
["Podrobnosti vnesite v tabelo »Zavarovanje«, ki se začne v celici na desni, ter v tabelo »Davki«, ki se začne v celici G33. Naslednji korak je v celici A42.","ZAVAROVANJE","Predvideni stroški","Dejanski stroški","Razlika",null,"Državni",null,null,{"$f":"Davki[[#This Row],[Predvideni stroški]]-Davki[[#This Row],[Dejanski stroški]]","v":{"v":0,"d":"0.00 €"}}]
[null,"Dom",null,null,{"$f":"Zavarovanje[[#This Row],[Predvideni stroški]]-Zavarovanje[[#This Row],[Dejanski stroški]]","v":{"v":0,"d":"0.00 €"}},null,"Lokalni",null,null,{"$f":"Davki[[#This Row],[Predvideni stroški]]-Davki[[#This Row],[Dejanski stroški]]","v":{"v":0,"d":"0.00 €"}}]
[null,"Zdravstveno",null,null,{"$f":"Zavarovanje[[#This Row],[Predvideni stroški]]-Zavarovanje[[#This Row],[Dejanski stroški]]","v":{"v":0,"d":"0.00 €"}},null,"Drugo",null,null,{"$f":"Davki[[#This Row],[Predvideni stroški]]-Davki[[#This Row],[Dejanski stroški]]","v":{"v":0,"d":"0.00 €"}}]
[null,"Življenjsko",null,null,{"$f":"Zavarovanje[[#This Row],[Predvideni stroški]]-Zavarovanje[[#This Row],[Dejanski stroški]]","v":{"v":0,"d":"0.00 €"}},null,"Delna vsota",null,null,{"$f":"SUBTOTAL(109,Davki[Razlika])","v":{"v":0,"d":"0.00 €"}}]
[null,"Drugo",null,null,{"$f":"Zavarovanje[[#This Row],[Predvideni stroški]]-Zavarovanje[[#This Row],[Dejanski stroški]]","v":{"v":0,"d":"0.00 €"}}]
[null,"Delna vsota",null,null,{"$f":"SUBTOTAL(109,Zavarovanje[Razlika])","v":{"v":0,"d":"0.00 €"}},null,"PRIHRANKI ALI NALOŽBE","Predvideni stroški","Dejanski stroški","Razlika"]
[{"$nulls":6},"Varčevalni račun",null,null,{"$f":"Prihranki[[#This Row],[Predvideni stroški]]-Prihranki[[#This Row],[Dejanski stroški]]","v":{"v":0,"d":"0.00 €"}}]
["Podrobnosti vnesite v tabelo »Hrana«, ki se začne v celici na desni, ter v tabelo »Prihranki«, ki se začne v celici G40. Naslednji korak je v celici A48.","HRANA","Predvideni stroški","Dejanski stroški","Razlika",null,"Naložbeni račun",null,null,{"$f":"Prihranki[[#This Row],[Predvideni stroški]]-Prihranki[[#This Row],[Dejanski stroški]]","v":{"v":0,"d":"0.00 €"}}]
[null,"Živila",null,null,{"$f":"Hrana[[#This Row],[Predvideni stroški]]-Hrana[[#This Row],[Dejanski stroški]]","v":{"v":0,"d":"0.00 €"}},null,"Drugo",null,null,{"$f":"Prihranki[[#This Row],[Predvideni stroški]]-Prihranki[[#This Row],[Dejanski stroški]]","v":{"v":0,"d":"0.00 €"}}]
[null,"Kosila v restavracijah",null,null,{"$f":"Hrana[[#This Row],[Predvideni stroški]]-Hrana[[#This Row],[Dejanski stroški]]","v":{"v":0,"d":"0.00 €"}},null,"Delna vsota",null,null,{"$f":"SUBTOTAL(109,Prihranki[Razlika])","v":{"v":0,"d":"0.00 €"}}]
[null,"Drugo",null,null,{"$f":"Hrana[[#This Row],[Predvideni stroški]]-Hrana[[#This Row],[Dejanski stroški]]","v":{"v":0,"d":"0.00 €"}}]
[null,"Delna vsota",null,null,{"$f":"SUBTOTAL(109,Hrana[Razlika])","v":{"v":0,"d":"0.00 €"}},null,"DARILA IN DONACIJE","Predvideni stroški","Dejanski stroški","Razlika"]
[{"$nulls":6},"Dobrodelno 1",null,null,{"$f":"Darila[[#This Row],[Predvideni stroški]]-Darila[[#This Row],[Dejanski stroški]]","v":{"v":0,"d":"0.00 €"}}]
["Podrobnosti vnesite v tabelo »Hišni ljubljenčki«, ki se začne v celici na desni, ter v tabelo »Darila«, ki se začne v celici G46. Naslednji korak je v celici A56.","HIŠNI LJUBLJENČKI","Predvideni stroški","Dejanski stroški","Razlika",null,"Dobrodelno 2",null,null,{"$f":"Darila[[#This Row],[Predvideni stroški]]-Darila[[#This Row],[Dejanski stroški]]","v":{"v":0,"d":"0.00 €"}}]
[null,"Hrana",null,null,{"$f":"Hišni_ljubljenčki[[#This Row],[Predvideni stroški]]-Hišni_ljubljenčki[[#This Row],[Dejanski stroški]]","v":{"v":0,"d":"0.00 €"}},null,"Dobrodelno 3",null,null,{"$f":"Darila[[#This Row],[Predvideni stroški]]-Darila[[#This Row],[Dejanski stroški]]","v":{"v":0,"d":"0.00 €"}}]
[null,"Zdravstvene potrebščine",null,null,{"$f":"Hišni_ljubljenčki[[#This Row],[Predvideni stroški]]-Hišni_ljubljenčki[[#This Row],[Dejanski stroški]]","v":{"v":0,"d":"0.00 €"}},null,"Delna vsota",null,null,{"$f":"SUBTOTAL(109,Darila[Razlika])","v":{"v":0,"d":"0.00 €"}}]
[null,"Nega",null,null,{"$f":"Hišni_ljubljenčki[[#This Row],[Predvideni stroški]]-Hišni_ljubljenčki[[#This Row],[Dejanski stroški]]","v":{"v":0,"d":"0.00 €"}}]
[null,"Igrače",null,null,{"$f":"Hišni_ljubljenčki[[#This Row],[Predvideni stroški]]-Hišni_ljubljenčki[[#This Row],[Dejanski stroški]]","v":{"v":0,"d":"0.00 €"}},null,"PRAVNE ZADEVE","Predvideni stroški","Dejanski stroški","Razlika"]
[null,"Drugo",null,null,{"$f":"Hišni_ljubljenčki[[#This Row],[Predvideni stroški]]-Hišni_ljubljenčki[[#This Row],[Dejanski stroški]]","v":{"v":0,"d":"0.00 €"}},null,"Odvetnik",null,null,{"$f":"Pravne_zadeve[[#This Row],[Predvideni stroški]]-Pravne_zadeve[[#This Row],[Dejanski stroški]]","v":{"v":0,"d":"0.00 €"}}]
[null,"Delna vsota",null,null,{"$f":"SUBTOTAL(109,Hišni_ljubljenčki[Razlika])","v":{"v":0,"d":"0.00 €"}},null,"Preživnina",null,null,{"$f":"Pravne_zadeve[[#This Row],[Predvideni stroški]]-Pravne_zadeve[[#This Row],[Dejanski stroški]]","v":{"v":0,"d":"0.00 €"}}]
[{"$nulls":6},"Plačila do zadržanja ali razsodbe",null,null,{"$f":"Pravne_zadeve[[#This Row],[Predvideni stroški]]-Pravne_zadeve[[#This Row],[Dejanski stroški]]","v":{"v":0,"d":"0.00 €"}}]
["Podrobnosti vnesite v tabelo »Osebna nega«, ki se začne v celici na desni, ter v tabelo »Pravne zadeve«, ki se začne v celici G52. Naslednji korak je v celici A59.","OSEBNA NEGA","Predvideni stroški","Dejanski stroški","Razlika",null,"Drugo",null,null,{"$f":"Pravne_zadeve[[#This Row],[Predvideni stroški]]-Pravne_zadeve[[#This Row],[Dejanski stroški]]","v":{"v":0,"d":"0.00 €"}}]
[null,"Zdravstvene potrebščine",null,null,{"$f":"Osebna_nega[[#This Row],[Predvideni stroški]]-Osebna_nega[[#This Row],[Dejanski stroški]]","v":{"v":0,"d":"0.00 €"}},null,"Delna vsota",null,null,{"$f":"SUBTOTAL(109,Pravne_zadeve[Razlika])","v":{"v":0,"d":"0.00 €"}}]
[null,"Lasje/nohti",null,null,{"$f":"Osebna_nega[[#This Row],[Predvideni stroški]]-Osebna_nega[[#This Row],[Dejanski stroški]]","v":{"v":0,"d":"0.00 €"}}]
["Skupni predvideni stroški so samodejno izračunani v celici J59, skupni dejanski stroški v celici J61 in skupna razlika v celici J63.","Oblačila",null,null,{"$f":"Osebna_nega[[#This Row],[Predvideni stroški]]-Osebna_nega[[#This Row],[Dejanski stroški]]","v":{"v":0,"d":"0.00 €"}},null,"PREDVIDENI STROŠKI SKUPAJ",null,null,{"$f":"SUBTOTAL(109,Bivanje[Predvideni stroški],Prevoz[Predvideni stroški],Zavarovanje[Predvideni stroški],Hrana[Predvideni stroški],Hišni_ljubljenčki[Predvideni stroški],Osebna_nega[Predvideni stroški],Razvedrilo[Predvideni stroški],Posojila[Predvideni stroški],Davki[Predvideni stroški],Prihranki[Predvideni stroški],Darila[Predvideni stroški],Pravne_zadeve[Predvideni stroški])","v":{"v":1195,"d":"1,195.00 €"}}]
[null,"Kemična čistilnica",null,null,{"$f":"Osebna_nega[[#This Row],[Predvideni stroški]]-Osebna_nega[[#This Row],[Dejanski stroški]]","v":{"v":0,"d":"0.00 €"}}]
[null,"Fitnes",null,null,{"$f":"Osebna_nega[[#This Row],[Predvideni stroški]]-Osebna_nega[[#This Row],[Dejanski stroški]]","v":{"v":0,"d":"0.00 €"}},null,"DEJANSKI STROŠKI SKUPAJ",null,null,{"$f":"SUBTOTAL(109,Bivanje[Dejanski stroški],Prevoz[Dejanski stroški],Zavarovanje[Dejanski stroški],Hrana[Dejanski stroški],Hišni_ljubljenčki[Dejanski stroški],Osebna_nega[Dejanski stroški],Razvedrilo[Dejanski stroški],Posojila[Dejanski stroški],Davki[Dejanski stroški],Prihranki[Dejanski stroški],Darila[Dejanski stroški],Pravne_zadeve[Dejanski stroški])","v":{"v":1236,"d":"1,236.00 €"}}]
[null,"Pristojbine za organizacijo",null,null,{"$f":"Osebna_nega[[#This Row],[Predvideni stroški]]-Osebna_nega[[#This Row],[Dejanski stroški]]","v":{"v":0,"d":"0.00 €"}}]
[null,"Drugo",null,null,{"$f":"Osebna_nega[[#This Row],[Predvideni stroški]]-Osebna_nega[[#This Row],[Dejanski stroški]]","v":{"v":0,"d":"0.00 €"}},null,"RAZLIKA SKUPAJ",null,null,{"$f":"J59-J61","v":{"v":-41,"d":"-41.00 €"}}]
[null,"Delna vsota",null,null,{"$f":"SUBTOTAL(109,Osebna_nega[Razlika])","v":{"v":0,"d":"0.00 €"}}]